[Event "World Junior U20 Girls 2018"]
[Site "Gebze"]
[Date "2018.09.13"]
[Round "9"]
[White "Nass, Sara"]
[Black "Du, Yuxin"]
[Result "1-0"]
[ECO "B19"]
[WhiteElo "1888"]
[BlackElo "2146"]
[Annotator "NA"]
[PlyCount "97"]
[EventDate "2018.09.05"]
[EventType "swiss"]
[EventCountry "TUR"]
[SourceTitle "playchess.com"]
[Source "ChessBase"]
[SourceQuality "1"]
[TimeControl "40/5400+30:1800+30"]

1. e4 {[%emt 0:00:30]} c6 {[%emt 0:00:30]} 2. d4 {[%emt 0:00:30]} d5 {[%emt 0:00:30]} 3. Nc3 {[%emt 0:00:30]} dxe4 {[%emt 0:00:00]} 4. Nxe4 {[%emt 0:00:00]} Bf5 {[%emt 0:00:00]} 5. Ng3 {[%emt 0:00:00]} Bg6 {[%emt 0:00:00]} 6. h4 {[%emt 0:00:00]} h6 {[%emt 0:00:00]} 7. Nf3 {[%emt 0:00:00] LiveBook: 7229 Games} Nd7 {[%emt 0:00:00]} 8. h5 {[%emt 0:00:00]} Bh7 {[%emt 0:00:00]} 9. Bd3 {[%emt 0:00:00]} Bxd3 {[%emt 0:00:30]} 10. Qxd3 {[%emt 0:00:30]} e6 {[%emt 0:00:30]} 11. Bf4 {[%emt 0:00:00]} Qa5+ {[%emt 0:00:30] B19: Classical Caro-Kann: 4...Bf5 main line} 12. Bd2 {[%emt 0:00:00]} Bb4 {[%emt 0:00:30]} 13. c3 {[%emt 0:00:00]} Be7 {[%emt 0:00:30]} 14. c4 {[%emt 0:00:00]} Qa6 {[%emt 0:02:30]} (14... Qc7 15. d5 cxd5 16. cxd5 Qd6 17. Qb5 Ngf6 18. dxe6 Qxe6+ 19. Kf1 {1-0 (64) Kokarev,D (2622)-Rozum,I (2586) Khanty-Mansiysk 2017}) 15. O-O {[%emt 0:00:30]} Ngf6 {[%emt 0:00:30]} 16. Rfe1 {[%emt 0:00:00]} O-O {[%emt 0:09:30]} 17. Nf5 {[%emt 0:00:00]} exf5 {[%emt 0:01:30]} 18. Rxe7 {[%emt 0:00:00]} Rfe8 {[%emt 0:00:30]} 19. Rae1 {[%emt 0:00:00]} Rxe7 {[%emt 0:00:30]} 20. Rxe7 {[%emt 0:00:30]} Kf8 $146 {[%emt 0:07:30]} 21. Rxd7 {[%emt 0:00:00]} Nxd7 {[%emt 0:00:30]} 22. Qxf5 {[%emt 0:00:00]} Rd8 {[%emt 0:35:30]} 23. Qh7 {[%emt 0:00:00]} Qxc4 {[%emt 0:28:22]} 24. Qh8+ {[%emt 0:03:00]} Ke7 {[%emt 0:00:30]} 25. Qxg7 {[%emt 0:00:00]} Qxa2 {[%emt 0:03:37]} 26. Bxh6 {[%emt 0:04:00]} Qb1+ {[%emt 0:02:51]} 27. Kh2 {[%emt 0:00:30]} Nf6 {[%emt 0:00:50]} 28. Bg5 {[%emt 0:02:30]} Qf5 {[%emt 0:01:32]} 29. Ne5 {[%emt 0:00:30]} Rxd4 {[%emt 0:01:54]} 30. Qxf7+ {[%emt 0:00:30]} Kd6 {[%emt 0:00:00]} 31. Qxf6+ {[%emt 0:00:30]} Qxf6 {[%emt 0:00:00]} 32. Bxf6 {[%emt 0:00:30]} Ke6 {[%emt 0:02:05]} 33. Nf3 {[%emt 0:00:30]} Rd5 {[%emt 0:00:35]} 34. Bg5 {[%emt 0:00:30]} a5 {[%emt 0:00:39]} 35. g4 {[%emt 0:02:30]} a4 {[%emt 0:00:16]} 36. Be3 {[%emt 0:01:30]} Kf7 {[%emt 0:00:46]} 37. h6 {[%emt 0:02:30]} c5 {[%emt 0:01:40]} 38. g5 {[%emt 0:03:30]} b5 {[%emt 0:00:17]} 39. h7 {[%emt 0:01:30]} Kg7 {[%emt 0:00:22]} 40. g6 {[%emt 0:00:00]} Rh5+ {[%emt 0:00:00]} 41. Kg3 {[%emt 0:00:00]} Kxg6 {[%emt 0:02:14]} 42. Ng5 {[%emt 0:03:30]} b4 {[%emt 0:10:30]} 43. f4 {[%emt 0:01:30]} c4 {[%emt 0:07:00]} 44. Kg4 {[%emt 0:06:30]} Rh6 {[%emt 0:09:35]} 45. f5+ {[%emt 0:04:30]} Kg7 {[%emt 0:00:06]} 46. Bd4+ {[%emt 0:00:30]} Kf8 {[%emt 0:00:14]} 47. h8=Q+ {[%emt 0:00:00]} Rxh8 {[%emt 0:00:04]} 48. Bxh8 {[%emt 0:00:00]} Kg8 {[%emt 0:02:37]} 49. Bd4 {[%emt 0:00:30]} 1-0

[Event "World Junior U20 Girls 2018"]
[Site "Gebze"]
[Date "2018.09.13"]
[Round "9"]
[White "Aydin, Gulenay"]
[Black "Nastase, Andreea-Cristina"]
[Result "0-1"]
[ECO "B80"]
[WhiteElo "1882"]
[BlackElo "1983"]
[Annotator "NA"]
[PlyCount "136"]
[EventDate "2018.09.05"]
[EventType "swiss"]
[EventCountry "TUR"]
[SourceTitle "playchess.com"]
[Source "ChessBase"]
[SourceQuality "1"]
[TimeControl "40/5400+30:1800+30"]

1. e4 {[%emt 0:00:30]} c5 {[%emt 0:01:30]} 2. Nf3 {[%emt 0:00:30]} d6 {[%emt 0:00:30]} 3. d4 {[%emt 0:00:30]} cxd4 {[%emt 0:00:00]} 4. Nxd4 {[%emt 0:00:00]} Nf6 {[%emt 0:00:00]} 5. Nc3 {[%emt 0:00:00]} a6 {[%emt 0:00:00]} 6. f3 {[%emt 0:00:30]} e6 {[%emt 0:00:00]} 7. Be3 {[%emt 0:00:00]} b5 {[%emt 0:00:30]} 8. Qd2 {[%emt 0:00:00]} Nbd7 {[%emt 0:00:00]} 9. g4 {[%emt 0:00:30]} Nb6 {[%emt 0:00:00]} 10. a4 {[%emt 0:01:30] B80: Sicilian Scheveningen: 6 g3 and 6 Be3, including English Attack} Nc4 {[%emt 0:00:30]} 11. Bxc4 {[%emt 0:00:30]} bxc4 {[%emt 0:00:30]} 12. g5 {[%emt 0:00:30]} (12. a5 Qc7 13. g5 Nd7 14. Kd1 Rb8 15. Kc1 Nc5 16. Na4 Nxa4 17. Rxa4 Be7 {0-1 (53) Yu,Y (2734)-Xu,J (2534) Wuxi 2016}) 12... Nd7 {[%emt 0:00:30]} 13. f4 {[%emt 0:01:30]} Bb7 {[%emt 0:04:30]} 14. f5 {[%emt 0:00:30]} e5 {[%emt 0:06:30]} 15. Nf3 {[%emt 0:04:30]} h6 $146 {[%emt 0:06:30]} ({Predecessor:} 15... Qa5 16. O-O Rc8 17. Qe2 Be7 18. Rfd1 h6 {½-½ (29) Tiemann,H (2470)-Avotins,M (2465) ICCF email 2009}) 16. O-O-O {[%emt 0:07:30]} (16. gxh6 $16 gxh6 17. Qe2) 16... hxg5 {[%emt 0:01:30]} 17. Bxg5 {[%emt 0:00:30]} Qa5 {[%emt 0:02:30]} 18. Kb1 {[%emt 0:16:30]} Rc8 {[%emt 0:04:30]} 19. Be3 {[%emt 0:05:30]} Bc6 {[%emt 0:09:30]} 20. Ng5 {[%emt 0:06:30]} Rb8 {[%emt 0:02:30]} 21. Nd5 {[%emt 0:06:30]} Qxd2 {[%emt 0:00:30]} 22. Rxd2 {[%emt 0:00:30]} Bxd5 {[%emt 0:01:30]} 23. Rxd5 {[%emt 0:00:30]} Nf6 {[%emt 0:00:30]} 24. Rdd1 {[%emt 0:46:30]} Nd7 {[%emt 0:06:30]} 25. Rd5 {[%emt 0:00:30]} Nf6 {[%emt 0:00:30]} 26. Rdd1 {[%emt 0:00:30]} Rh4 {[%emt 0:00:00]} 27. Bf2 {[%emt 0:00:00]} Rg4 {[%emt 0:03:00]} 28. Rhg1 {[%emt 0:00:00]} Rxg5 {[%emt 0:00:30]} 29. Rxg5 {[%emt 0:00:00]} Nxe4 {[%emt 0:00:30]} 30. Rgg1 {[%emt 0:00:00]} Nc3+ {[%emt 0:00:30]} 31. Kc1 {[%emt 0:00:00]} Ne2+ {[%emt 0:00:30]} 32. Kb1 {[%emt 0:00:00]} Nxg1 {[%emt 0:00:30]} 33. Rxg1 {[%emt 0:00:00]} f6 {[%emt 0:01:30]} 34. c3 {[%emt 0:00:00]} Kf7 {[%emt 0:01:30]} 35. Kc2 {[%emt 0:00:00]} Be7 {[%emt 0:00:30]} 36. h4 {[%emt 0:00:00]} Rh8 {[%emt 0:01:30]} 37. Rf1 {[%emt 0:00:00]} Rh5 {[%emt 0:00:30]} 38. Be1 {[%emt 0:00:00]} g6 {[%emt 0:00:30]} 39. fxg6+ {[%emt 0:00:00]} Kxg6 {[%emt 0:00:00]} 40. b3 {[%emt 0:00:00]} cxb3+ {[%emt 0:01:00]} 41. Kxb3 {[%emt 0:07:30]} f5 {[%emt 0:30:30]} 42. Kc4 {[%emt 0:00:00]} Bxh4 {[%emt 0:00:00]} 43. Kd5 $19 {[%emt 0:00:00]} Bxe1 {[%emt 0:00:00]} 44. Rxe1 {[%emt 0:00:00]} Kf6 {[%emt 0:00:00]} 45. Kxd6 {[%emt 0:00:00]} e4 {[%emt 0:00:00]} 46. c4 {[%emt 0:00:00]} Rh2 {[%emt 0:00:00]} 47. c5 {[%emt 0:00:00]} Rd2+ {[%emt 0:00:00]} 48. Kc7 {[%emt 0:00:00]} Ra2 {[%emt 0:00:00]} 49. c6 {[%emt 0:00:00]} Rc2 {[%emt 0:00:00]} 50. Kd7 {[%emt 0:00:00]} Ke5 {[%emt 0:00:00]} 51. c7 {[%emt 0:00:00]} f4 {[%emt 0:00:00]} 52. a5 {[%emt 0:00:00]} f3 {[%emt 0:00:00]} 53. c8=Q {[%emt 0:00:00]} Rxc8 {[%emt 0:00:00]} 54. Kxc8 {[%emt 0:00:00]} f2 {[%emt 0:00:00]} 55. Rf1 {[%emt 0:00:00]} e3 {[%emt 0:00:00]} 56. Kb7 {[%emt 0:00:00]} e2 {[%emt 0:00:00]} 57. Rxf2 {[%emt 0:00:00]} e1=Q {[%emt 0:00:00]} 58. Rh2 {[%emt 0:00:30]} Qb1+ {[%emt 0:00:00]} 59. Kxa6 {[%emt 0:00:30]} Qd3+ {[%emt 0:00:00]} 60. Kb6 {[%emt 0:02:30]} Qe3+ {[%emt 0:00:00]} 61. Kb5 {[%emt 0:04:30]} Ke6 {[%emt 0:00:00]} 62. Kc6 {[%emt 0:04:30]} Qe4+ {[%emt 0:00:00]} 63. Kb6 {[%emt 0:00:30]} Qd4+ {[%emt 0:00:00]} 64. Kb7 {[%emt 0:00:30]} Qd5+ {[%emt 0:00:00]} 65. Ka7 {[%emt 0:00:30]} Qxa5+ {[%emt 0:01:00]} 66. Kb7 {[%emt 0:00:30]} Qd5+ {[%emt 0:00:00]} 67. Ka7 {[%emt 0:00:30]} Qd7+ {[%emt 0:00:00]} 68. Ka8 {[%emt 0:00:00]} Qc8+ {[%emt 0:00:00]} 0-1

[Event "World Junior U20 Girls 2018"]
[Site "Gebze"]
[Date "2018.09.13"]
[Round "9"]
[White "Bail, Ellen Larissa"]
[Black "Vujcic, Milena"]
[Result "0-1"]
[ECO "E81"]
[WhiteElo "1832"]
[BlackElo "1955"]
[Annotator "NA"]
[PlyCount "80"]
[EventDate "2018.09.05"]
[EventType "swiss"]
[EventCountry "TUR"]
[SourceTitle "playchess.com"]
[Source "ChessBase"]
[SourceQuality "1"]
[TimeControl "40/5400+30:1800+30"]

1. d4 {[%emt 0:00:30]} Nf6 {[%emt 0:00:30]} 2. c4 {[%emt 0:00:30]} g6 {[%emt 0:00:30]} 3. Nc3 {[%emt 0:00:30]} Bg7 {[%emt 0:00:00]} 4. e4 {[%emt 0:00:00]} d6 {[%emt 0:00:00]} 5. f3 {[%emt 0:00:00]} O-O {[%emt 0:00:00]} 6. Be3 {[%emt 0:00:00]} c5 {[%emt 0:00:00]} 7. Nge2 {[%emt 0:00:00]} Nc6 {[%emt 0:00:00]} 8. d5 {[%emt 0:00:30]} Ne5 {[%emt 0:00:00]} 9. Ng3 {[%emt 0:01:30]} h5 {[%emt 0:01:30]} 10. h4 {[%emt 0:02:30] E81: Königsindisch (Sämisch-Angriff)} (10. Be2 h4 11. Nf1 e6 12. Bg5 exd5 13. Nxd5 h3 14. gxh3 Bxh3 15. Ng3 Qa5+ 16. b4 Qd8 17. bxc5 Qa5+ {½-½ (89) Sethuraman,S (2631)-Jones,G (2675) Dubai 2018}) 10... Qa5 {[%emt 0:05:30]} 11. Qd2 {[%emt 0:06:30]} a6 {[%emt 0:01:30]} 12. Be2 {[%emt 0:00:30]} Bd7 {[%emt 0:02:30]} 13. O-O {[%emt 0:11:30]} b5 {[%emt 0:06:30]} 14. cxb5 $146 {[%emt 0:14:30]} ({Vorgänger:} 14. Nb1 Nxc4 15. Bxc4 Qxd2 16. Nxd2 bxc4 17. Nxc4 {1-0 (51) Henke,S (1474)-Fiser,O (1318) LSS email 2014}) 14... axb5 {[%emt 0:00:30]} 15. Bh6 {[%emt 0:10:30]} b4 {[%emt 0:03:30]} 16. Nd1 {[%emt 0:00:30]} Qb6 {[%emt 0:05:30]} 17. Bxg7 {[%emt 0:03:30]} Kxg7 {[%emt 0:00:00]} 18. Ne3 {[%emt 0:04:30]} Ra7 {[%emt 0:13:00]} 19. b3 {[%emt 0:06:30]} Rfa8 {[%emt 0:22:30]} 20. Kh1 {[%emt 0:04:30]} Bb5 {[%emt 0:05:30]} 21. Rfc1 {[%emt 0:23:25]} Bxe2 {[%emt 0:01:30]} 22. Qxe2 {[%emt 0:00:26]} Qa6 {[%emt 0:04:30]} 23. Nc4 {[%emt 0:00:25]} Nxc4 {[%emt 0:00:30]} 24. Rxc4 {[%emt 0:00:23]} Nd7 {[%emt 0:01:30]} 25. f4 {[%emt 0:01:32]} Nb6 {[%emt 0:01:30]} 26. Qb2+ {[%emt 0:04:22]} Kh7 {[%emt 0:02:30]} 27. Rcc1 {[%emt 0:00:09]} Qd3 {[%emt 0:03:59]} 28. Kh2 $19 {[%emt 0:00:09]} (28. Qf2 $17) 28... Ra3 {[%emt 0:01:56]} 29. f5 {[%emt 0:01:06]} Nd7 {[%emt 0:06:50]} 30. fxg6+ {[%emt 0:03:39]} fxg6 {[%emt 0:00:09]} 31. Rf1 {[%emt 0:00:03]} Ne5 {[%emt 0:00:31]} 32. Qe2 {[%emt 0:00:42]} Qxe2 {[%emt 0:00:23]} 33. Nxe2 {[%emt 0:00:06]} Rxa2 {[%emt 0:00:49]} 34. Rxa2 {[%emt 0:00:30]} Rxa2 {[%emt 0:00:00]} 35. Nf4 {[%emt 0:00:08]} Ng4+ {[%emt 0:02:19]} 36. Kg3 {[%emt 0:01:13]} Ra3 {[%emt 0:00:55]} 37. Rf3 {[%emt 0:00:35]} Nf6 {[%emt 0:00:21]} 38. Re3 {[%emt 0:00:34]} Ng4 {[%emt 0:01:32]} 39. Rf3 {[%emt 0:00:37]} Ne5 {[%emt 0:00:11]} 40. Re3 {[%emt 0:00:00]} c4 {[%emt 0:00:00]} 0-1

[Event "World Junior U20 Girls 2018"]
[Site "Gebze"]
[Date "2018.09.13"]
[Round "9"]
[White "Caxita, Esperanca"]
[Black "Tian, Shi Yuan"]
[Result "1/2-1/2"]
[ECO "C02"]
[WhiteElo "1803"]
[BlackElo "1923"]
[Annotator "NA"]
[PlyCount "116"]
[EventDate "2018.09.05"]
[EventType "swiss"]
[EventCountry "TUR"]
[SourceTitle "playchess.com"]
[Source "ChessBase"]
[SourceQuality "1"]
[TimeControl "40/5400+30:1800+30"]

1. e4 {[%emt 0:00:30]} e6 {[%emt 0:00:30]} 2. d4 {[%emt 0:00:30]} d5 {[%emt 0:00:00]} 3. e5 {[%emt 0:00:00]} c5 {[%emt 0:00:00]} 4. c3 {[%emt 0:00:00]} Nc6 {[%emt 0:00:30]} 5. Nf3 {[%emt 0:00:30]} Bd7 {[%emt 0:00:00]} 6. Bd3 {[%emt 0:00:30]} Qb6 {[%emt 0:05:00]} 7. dxc5 {[%emt 0:00:30]} Bxc5 {[%emt 0:02:30]} 8. O-O {[%emt 0:00:30]} Qc7 {[%emt 0:00:30]} 9. Qe2 {[%emt 0:02:30]} Nge7 {[%emt 0:05:30] C02: Französische Verteidigung (Vorstoßvariante)} (9... a5 10. Na3 Bxa3 11. bxa3 Nge7 12. Rb1 Ng6 13. Re1 O-O 14. h4 f5 15. h5 Nh8 16. h6 Nf7 17. hxg7 Kxg7 {1-0 (61) Kiik,K (2395)-Sipila,V (2435) Naantali 2012}) 10. Bf4 {[%emt 0:02:30]} a6 {[%emt 0:03:30]} 11. Nbd2 {[%emt 0:01:30]} Rc8 {[%emt 0:02:30]} 12. Nb3 {[%emt 0:02:30]} Ba7 {[%emt 0:01:30]} 13. Bg3 {[%emt 0:01:30]} Na5 $146 {[%emt 0:08:30]} ({Vorgänger:} 13... Nf5 14. Bxf5 exf5 15. e6 f4 16. exd7+ Kxd7 17. Qd3 fxg3 18. Qxd5+ {½-½ (49) Nussbaumer,H-Trost,H Bayern 2000}) 14. Nxa5 {[%emt 0:04:30]} Qxa5 {[%emt 0:00:30]} 15. Rfe1 {[%emt 0:00:30]} Bb5 {[%emt 0:00:30]} 16. Bxb5+ {[%emt 0:00:30]} axb5 {[%emt 0:07:30]} 17. a3 {[%emt 0:08:30]} O-O {[%emt 0:04:30]} 18. Rad1 {[%emt 0:00:30]} Nf5 {[%emt 0:05:30]} 19. Bf4 {[%emt 0:06:30]} Rc4 {[%emt 0:04:30]} 20. Bc1 $11 {[%emt 0:05:30]} Rfc8 {[%emt 0:09:30]} 21. h3 {[%emt 0:01:30]} Qa4 {[%emt 0:03:30]} 22. Qd3 {[%emt 0:10:30]} Qa5 {[%emt 0:12:30]} 23. Nd2 {[%emt 0:01:30]} R4c6 {[%emt 0:01:30]} 24. Nf3 {[%emt 0:02:30]} Rc4 {[%emt 0:05:16]} 25. g4 {[%emt 0:02:30]} Ne7 {[%emt 0:00:39]} 26. Be3 {[%emt 0:00:30]} h6 {[%emt 0:04:11]} 27. Nd2 {[%emt 0:02:30]} Bxe3 {[%emt 0:00:21]} 28. Nxc4 {[%emt 0:00:30]} Bxf2+ {[%emt 0:00:06]} 29. Kxf2 {[%emt 0:00:30]} bxc4 {[%emt 0:00:06]} 30. Qe3 {[%emt 0:01:30]} Qc7 {[%emt 0:00:55]} 31. Kg2 {[%emt 0:01:30]} Ng6 {[%emt 0:01:15]} 32. Rd2 {[%emt 0:02:30]} Nf8 {[%emt 0:05:17]} 33. Rf2 {[%emt 0:00:30]} Ng6 {[%emt 0:01:17]} 34. Qg3 {[%emt 0:03:30]} Rf8 {[%emt 0:01:16]} 35. h4 {[%emt 0:01:30]} Qd8 {[%emt 0:01:53]} 36. h5 {[%emt 0:01:30]} Nh8 {[%emt 0:00:27]} 37. Qe3 {[%emt 0:01:30]} Qh4 {[%emt 0:00:54]} 38. Qf4 {[%emt 0:01:30]} f5 {[%emt 0:01:46]} 39. exf6 {[%emt 0:02:30]} Rxf6 {[%emt 0:00:01]} 40. Qg3 {[%emt 0:00:00]} Rxf2+ {[%emt 0:00:00]} 41. Kxf2 {[%emt 0:02:00]} Qf6+ {[%emt 0:02:20]} 42. Kg2 {[%emt 0:01:30]} Nf7 {[%emt 0:02:30]} 43. Rf1 {[%emt 0:05:30]} Qe7 {[%emt 0:00:30]} 44. Qf4 {[%emt 0:02:30]} Nd6 {[%emt 0:03:30]} 45. Rf2 {[%emt 0:01:30]} e5 {[%emt 0:03:30]} 46. Re2 {[%emt 0:07:30]} Ne4 {[%emt 0:00:00]} 47. Qf5 {[%emt 0:03:30]} Qh4 {[%emt 0:02:00]} 48. Rxe4 {[%emt 0:01:30]} dxe4 {[%emt 0:00:30]} 49. Qxe4 {[%emt 0:00:30]} b5 {[%emt 0:01:30]} 50. a4 {[%emt 0:01:30]} bxa4 {[%emt 0:00:30]} 51. Qxc4+ {[%emt 0:00:30]} Kh8 {[%emt 0:00:30]} 52. Qxa4 {[%emt 0:05:30]} Qe1 {[%emt 0:00:30]} 53. Qe8+ {[%emt 0:04:30]} Kh7 {[%emt 0:00:00]} 54. Qg6+ {[%emt 0:03:30]} Kh8 {[%emt 0:00:00]} 55. Qc2 {[%emt 0:05:30]} e4 {[%emt 0:04:53]} 56. Qf2 {[%emt 0:00:30]} Qc1 {[%emt 0:02:30]} 57. Qe2 {[%emt 0:02:47]} Qf4 {[%emt 0:02:03]} 58. b4 {[%emt 0:00:53]} e3 {[%emt 0:01:22]} 1/2-1/2

[Event "World Junior U20 Girls 2018"]
[Site "Gebze"]
[Date "2018.09.13"]
[Round "9"]
[White "Can, Isil"]
[Black "Auvray, Honorine"]
[Result "0-1"]
[ECO "B66"]
[WhiteElo "1798"]
[BlackElo "2050"]
[Annotator "NA RC"]
[PlyCount "102"]
[EventDate "2018.09.05"]
[EventType "swiss"]
[EventCountry "TUR"]
[SourceTitle "playchess.com"]
[Source "ChessBase"]
[SourceQuality "1"]
[TimeControl "40/5400+30:1800+30"]

1. e4 {[%emt 0:00:30]} c5 {[%emt 0:00:30]} 2. Nf3 {[%emt 0:00:30]} Nc6 {[%emt 0:00:30]} 3. d4 {[%emt 0:00:00]} cxd4 {[%emt 0:00:00]} 4. Nxd4 {[%emt 0:00:00]} Nf6 {[%emt 0:00:00]} 5. Nc3 {[%emt 0:00:30]} d6 {[%emt 0:00:30]} 6. Bg5 {[%emt 0:00:30]} e6 {[%emt 0:00:30]} 7. Qd2 {[%emt 0:00:30]} a6 {[%emt 0:00:30]} 8. O-O-O {[%emt 0:00:30]} Nxd4 {[%emt 0:00:30]} 9. Qxd4 {[%emt 0:00:30]} Be7 {[%emt 0:00:30]} 10. f4 {[%emt 0:00:30]} b5 {[%emt 0:00:30]} 11. Bxf6 {[%emt 0:00:30]} gxf6 {[%emt 0:00:30]} 12. e5 {[%emt 0:00:30]} d5 {[%emt 0:00:30]} 13. Kb1 {[%emt 0:00:30]} Bb7 {[%emt 0:00:30] B66: Sicilian: Richter-Rauzer: 7...a6 8 0-0-0 h6} 14. f5 {[%emt 0:00:00]} fxe5 {[%emt 0:13:30]} 15. Qxe5 {[%emt 0:00:00]} Bf6 {[%emt 0:00:30]} 16. Qg3 {[%emt 0:00:00] [#]} Bh4 $146 {[%emt 0:07:30]} ({Predecessor:} 16... Qe7 17. fxe6 fxe6 18. Be2 h5 19. a4 h4 20. Qg6+ Qf7 21. Qg4 Rg8 22. Qh3 Rg5 23. Bg4 Ke7 24. Rhe1 Be5 25. Qe3 Rag8 26. Qa7 {1-0 (26) Akopian,V (2679)-Mamedyarov,S (2731) Dresden 2008}) 17. Qh3 {[%emt 0:04:00]} Bc8 {[%emt 0:08:30]} 18. g4 {[%emt 0:13:30]} Qg5 {[%emt 0:09:30]} 19. Qf3 {[%emt 0:06:30]} O-O {[%emt 0:03:30]} 20. Bd3 {[%emt 0:00:30]} Bd7 {[%emt 0:03:30]} 21. Ne2 {[%emt 0:01:30]} Kh8 {[%emt 0:16:30]} 22. Rhg1 {[%emt 0:14:30]} Rg8 {[%emt 0:01:30]} 23. Nf4 {[%emt 0:01:30]} a5 {[%emt 0:02:30]} 24. Ng2 {[%emt 0:06:30]} Qxg4 {[%emt 0:10:48]} 25. Qxg4 {[%emt 0:01:30]} Rxg4 {[%emt 0:00:34]} 26. h3 {[%emt 0:00:30]} Rd4 {[%emt 0:01:59]} 27. c3 {[%emt 0:00:30]} Rxd3 {[%emt 0:00:57]} 28. Rxd3 {[%emt 0:00:30]} Rg8 {[%emt 0:00:26]} 29. Rdd1 {[%emt 0:03:30]} Bf2 $11 {[%emt 0:03:43]} 30. Rgf1 {[%emt 0:00:30]} Rxg2 {[%emt 0:01:07]} 31. Rd2 {[%emt 0:00:00]} Kg7 {[%emt 0:04:17]} 32. Rdxf2 {[%emt 0:00:00]} Rxf2 {[%emt 0:00:31]} 33. Rxf2 {[%emt 0:00:30]} e5 {[%emt 0:00:00]} 34. f6+ {[%emt 0:00:30]} Kg6 {[%emt 0:00:00]} 35. h4 {[%emt 0:02:30]} Bf5+ {[%emt 0:00:40]} 36. Kc1 {[%emt 0:00:00]} Kxf6 {[%emt 0:00:00]} 37. Kd2 {[%emt 0:01:00]} Ke6 {[%emt 0:02:17]} 38. Rg2 {[%emt 0:00:30]} Bg6 {[%emt 0:05:00]} 39. Rg5 {[%emt 0:07:30]} f6 {[%emt 0:00:19]} 40. Rg2 {[%emt 0:00:00]} e4 {[%emt 0:00:00]} 41. Ke3 {[%emt 0:01:00]} Ke5 {[%emt 0:04:22]} 42. Rg4 {[%emt 0:08:30]} f5 {[%emt 0:07:30]} 43. Rg5 {[%emt 0:01:30]} Bf7 {[%emt 0:01:30]} 44. a3 {[%emt 0:04:30]} h6 {[%emt 0:00:30]} 45. Rg7 {[%emt 0:00:00]} f4+ {[%emt 0:00:30]} 46. Kf2 {[%emt 0:00:00]} e3+ {[%emt 0:03:30]} 47. Ke1 {[%emt 0:00:00]} Bh5 {[%emt 0:01:23]} 48. Rh7 {[%emt 0:03:00]} f3 {[%emt 0:01:15]} 49. Rxh6 {[%emt 0:00:30]} f2+ {[%emt 0:00:14]} 50. Kf1 {[%emt 0:00:00]} Bg4 {[%emt 0:00:09]} 51. Kg2 {[%emt 0:00:00]} Bh3+ {[%emt 0:00:47]} 0-1

[Event "World Junior U20 Girls 2018"]
[Site "Gebze"]
[Date "2018.09.13"]
[Round "9"]
[White "Anacoglu, Cisel"]
[Black "Kamalidenova, Meruert"]
[Result "1/2-1/2"]
[ECO "C14"]
[WhiteElo "1791"]
[BlackElo "2011"]
[Annotator "NA"]
[PlyCount "74"]
[EventDate "2018.09.05"]
[EventType "swiss"]
[EventCountry "TUR"]
[SourceTitle "playchess.com"]
[Source "ChessBase"]
[SourceQuality "1"]
[TimeControl "40/5400+30:1800+30"]

1. e4 {[%emt 0:00:30]} e6 {[%emt 0:00:30]} 2. d4 {[%emt 0:00:30]} d5 {[%emt 0:00:00]} 3. Nc3 {[%emt 0:00:30]} Nf6 {[%emt 0:00:00]} 4. Bg5 {[%emt 0:00:00]} Be7 {[%emt 0:00:30]} 5. e5 {[%emt 0:00:00]} Nfd7 {[%emt 0:00:00]} 6. Bxe7 {[%emt 0:00:00]} Qxe7 {[%emt 0:00:00]} 7. f4 {[%emt 0:00:00]} a6 {[%emt 0:00:30]} 8. Nf3 {[%emt 0:00:00]} c5 {[%emt 0:00:00]} 9. dxc5 {[%emt 0:00:00]} Nxc5 {[%emt 0:00:00]} 10. Qd2 {[%emt 0:00:30]} Nc6 {[%emt 0:00:30]} 11. O-O-O {[%emt 0:00:00]} b5 {[%emt 0:01:30]} 12. Bd3 {[%emt 0:09:00]} b4 {[%emt 0:01:30] C14: French: Classical System: 4 Bg5 Be7 main line} 13. Ne2 {[%emt 0:00:00]} Nxd3+ {[%emt 0:01:30]} (13... a5 14. Kb1 Ba6 15. Ned4 Nxd4 16. Nxd4 O-O 17. Qe3 Rfc8 18. f5 b3 19. Bxa6 bxa2+ 20. Ka1 Rxa6 {0-1 (34) Horvath,A (2515)-Moroni,L (2448) Prague 2016}) 14. cxd3 {[%emt 0:00:00]} a5 {[%emt 0:01:30]} 15. Kb1 {[%emt 0:02:30]} Ba6 {[%emt 0:02:30]} 16. Rc1 {[%emt 0:05:30]} Qb7 {[%emt 0:02:30]} 17. Ned4 $146 {[%emt 0:02:30]} ({Predecessor:} 17. Rc5 O-O 18. Rhc1 Rfc8 19. Ne1 a4 20. Qe3 {1-0 (44) Mueller,D (2208)-Kleifges,M Germany 2000}) 17... Nxd4 {[%emt 0:04:30]} 18. Nxd4 {[%emt 0:00:00]} a4 {[%emt 0:00:30]} 19. f5 {[%emt 0:09:00]} exf5 {[%emt 0:05:30]} 20. Nxf5 {[%emt 0:00:30]} O-O {[%emt 0:00:30]} 21. Rhf1 {[%emt 0:24:30]} f6 {[%emt 0:16:30]} 22. e6 {[%emt 0:03:30]} g6 {[%emt 0:06:30]} 23. e7 {[%emt 0:03:30]} Rfb8 {[%emt 0:01:30]} 24. e8=Q+ {[%emt 0:03:30]} Rxe8 {[%emt 0:00:30]} 25. Nd6 {[%emt 0:00:00]} Qb6 {[%emt 0:00:30]} 26. Nxe8 {[%emt 0:00:00]} Rxe8 {[%emt 0:00:30]} 27. Rfe1 {[%emt 0:03:30]} Rxe1 {[%emt 0:02:30]} 28. Rxe1 {[%emt 0:00:30]} Qd4 {[%emt 0:00:30]} 29. Rd1 {[%emt 0:03:30]} a3 {[%emt 0:05:30]} 30. bxa3 $16 {[%emt 0:07:30]} bxa3 {[%emt 0:00:30]} 31. Qc2 {[%emt 0:00:30]} g5 {[%emt 0:02:30]} 32. Qb3 {[%emt 0:01:30]} Qc5 {[%emt 0:01:30]} 33. Rc1 {[%emt 0:01:30]} Qd4 {[%emt 0:03:30]} 34. Rd1 {[%emt 0:15:31]} Qc5 {[%emt 0:00:30]} 35. Rc1 {[%emt 0:02:23]} Qd4 {[%emt 0:00:00]} 36. Rd1 {[%emt 0:01:11]} Qc5 {[%emt 0:00:00]} 37. Rc1 {[%emt 0:01:01]} Qd4 {[%emt 0:00:30]} 1/2-1/2